fUSD/lending_fUSD_20250609
["ID","MTS","AMOUNT","RATE_DAILY","PERIOD"]
[365094269,1749462704529,-2291.07,0.000267,31]
[365094270,1749462704538,-2291.07,0.000267,31]
[365094271,1749462704549,-2291.07,0.000267,31]
[365094272,1749462704559,-2291.07,0.000267,31]
[365094273,1749462704569,-2291.07,0.000267,31]
[365094274,1749462704580,-2291.07,0.000267,31]
[365094275,1749462704591,-2291.07,0.000267,31]
[365094276,1749462704601,-2291.07,0.000267,31]
[365094277,1749462704611,-2291.07,0.000267,31]
[365094278,1749462704622,-2291.07,0.000267,31]
[365094279,1749462704631,-2291.07,0.000267,31]
[365094280,1749462704642,-2291.07,0.000267,31]
[365094281,1749462704652,-2291.07,0.000267,31]
[365094282,1749462704661,-2291.07,0.000267,31]
[365094283,1749462704671,-2291.07,0.000267,31]
[365094284,1749462704680,-2291.07,0.000267,31]
[365094285,1749462704689,-2291.07,0.000267,31]
[365094286,1749462704698,-2291.07,0.000267,31]
[365094287,1749462704708,-2291.07,0.000267,31]
[365094288,1749462704718,-2291.07,0.000267,31]
[365094289,1749462704727,-346.28,0.000268,14]
[365094290,1749462704736,-500.0,0.00026808,2]
[365094291,1749462704746,-150.0,0.00026811,2]
[365094292,1749462704755,-150.0,0.00026845,120]
[365094293,1749462704764,-1000.0,0.0002685,7]
[365094294,1749462704776,-250.0,0.00027,2]
[365094295,1749462704785,-1004.0718058,0.00027,2]
[365094296,1749462704795,-268.54453277,0.00027,2]
[365094297,1749462704804,-1000.0,0.00027,5]
[365094298,1749462704813,-1000.0,0.00027,5]
[365094299,1749462704823,-1657.51635241,0.00027,120]
[365094300,1749462704832,-1078.0,0.00027,120]
[365094301,1749462704841,-1800.0,0.00027,28]
[365094302,1749462704851,-3071.75213376,0.00027,10]
[365094303,1749462704863,-8853.2748041,0.00027,120]
[365094304,1749462704872,-798.429487,0.00027,2]
[365094305,1749462704881,-4000.0,0.00027,4]
[365094306,1749462704891,-240.0,0.00027064,7]
[365094307,1749462704901,-346.28,0.000271,14]
[365094308,1749462704911,-257.78,0.00027123,2]
[365094309,1749462704920,-211.0,0.00027123,2]
[365094310,1749462704930,-211.0,0.00027123,2]
[365094311,1749462704940,-211.0,0.00027123,2]
[365094312,1749462704950,-211.0,0.00027123,2]
[365094313,1749462704959,-211.0,0.00027123,2]
[365094314,1749462704968,-211.0,0.00027123,2]
[365094315,1749462704977,-211.0,0.00027123,2]
[365094316,1749462704986,-211.0,0.00027123,2]
[365094317,1749462704996,-211.0,0.00027123,2]
[365094318,1749462705005,-211.0,0.00027123,2]
[365094319,1749462705015,-211.0,0.00027123,2]
[365094320,1749462705028,-211.0,0.00027123,2]
[365094321,1749462705037,-211.0,0.00027123,2]
[365094322,1749462705047,-211.0,0.00027123,2]
[365094323,1749462705056,-328.0,0.00027123,2]
[365094324,1749462705065,-328.0,0.00027123,2]
[365094325,1749462705075,-328.0,0.00027123,2]
[365094326,1749462705084,-328.0,0.00027123,2]
[365094327,1749462705093,-328.0,0.00027123,2]
[365094328,1749462705103,-328.0,0.00027123,2]
[365094329,1749462705112,-328.0,0.00027123,2]
[365094330,1749462705121,-328.0,0.00027123,2]
[365094331,1749462705131,-328.0,0.00027123,2]
[365094332,1749462705140,-328.0,0.00027123,2]
[365094333,1749462705150,-328.0,0.00027123,2]
[365094334,1749462705159,-328.0,0.00027123,2]
[365094335,1749462705169,-328.0,0.00027123,2]
[365094336,1749462705178,-328.0,0.00027123,2]
[365094337,1749462705187,-211.0,0.00027123,2]
[365094338,1749462705196,-211.0,0.00027123,2]
[365094339,1749462705205,-211.0,0.00027123,2]
[365094340,1749462705215,-211.0,0.00027123,2]
[365094341,1749462705224,-211.0,0.00027123,2]
[365094342,1749462705386,-211.0,0.00027123,2]
[365094343,1749462705397,-211.0,0.00027123,2]
[365094344,1749462705406,-211.0,0.00027123,2]
[365094345,1749462705416,-211.0,0.00027123,2]
[365094346,1749462705425,-211.0,0.00027123,2]
[365094347,1749462705434,-211.0,0.00027123,2]
[365094348,1749462705443,-211.0,0.00027123,2]
[365094349,1749462705452,-211.0,0.00027123,2]
[365094350,1749462705461,-211.0,0.00027123,2]
[365094351,1749462705470,-328.0,0.00027123,2]
[365094352,1749462705478,-328.0,0.00027123,2]
[365094353,1749462705487,-328.0,0.00027123,2]
[365094354,1749462705496,-328.0,0.00027123,2]
[365094355,1749462705505,-328.0,0.00027123,2]
[365094356,1749462705516,-328.0,0.00027123,2]
[365094357,1749462705526,-328.0,0.00027123,2]
[365094358,1749462705535,-328.0,0.00027123,2]
[365094359,1749462705544,-328.0,0.00027123,2]
[365094360,1749462705554,-328.0,0.00027123,2]
[365094361,1749462705563,-328.0,0.00027123,2]
[365094362,1749462705572,-328.0,0.00027123,2]
[365094363,1749462705581,-328.0,0.00027123,2]
[365094364,1749462705590,-328.0,0.00027123,2]
[365094365,1749462705599,-211.0,0.00027123,2]
[365094366,1749462705608,-211.0,0.00027123,2]
[365094367,1749462705617,-211.0,0.00027123,2]
[365094368,1749462705626,-211.0,0.00027123,2]
[365094369,1749462705635,-211.0,0.00027123,2]
[365094370,1749462705644,-211.0,0.00027123,2]
[365094371,1749462705653,-211.0,0.00027123,2]
[365094372,1749462705662,-211.0,0.00027123,2]
[365094373,1749462705671,-211.0,0.00027123,2]
[365094374,1749462705681,-211.0,0.00027123,2]
[365094375,1749462705690,-211.0,0.00027123,2]
[365094376,1749462705699,-211.0,0.00027123,2]
[365094377,1749462705709,-211.0,0.00027123,2]
[365094378,1749462705719,-211.0,0.00027123,2]
[365094379,1749462705728,-328.0,0.00027123,2]
[365094380,1749462705737,-328.0,0.00027123,2]
[365094381,1749462705747,-328.0,0.00027123,2]
[365094382,1749462705756,-328.0,0.00027123,2]
[365094383,1749462705765,-328.0,0.00027123,2]
[365094384,1749462705776,-328.0,0.00027123,2]
[365094385,1749462705786,-328.0,0.00027123,2]
[365094386,1749462705795,-328.0,0.00027123,2]
[365094387,1749462705805,-328.0,0.00027123,2]
[365094388,1749462705814,-328.0,0.00027123,2]
[365094389,1749462705824,-328.0,0.00027123,2]
[365094390,1749462705834,-328.0,0.00027123,2]
[365094391,1749462705843,-328.0,0.00027123,2]
[365094392,1749462705853,-328.0,0.00027123,2]
[365094393,1749462705864,-211.0,0.00027123,2]
[365094394,1749462705875,-211.0,0.00027123,2]
[365094395,1749462705885,-211.0,0.00027123,2]
[365094396,1749462705895,-211.0,0.00027123,2]
[365094397,1749462705905,-211.0,0.00027123,2]
[365094398,1749462705917,-211.0,0.00027123,2]
[365094399,1749462705928,-211.0,0.00027123,2]
[365094400,1749462705938,-211.0,0.00027123,2]
[365094401,1749462705949,-211.0,0.00027123,2]
[365094402,1749462705959,-211.0,0.00027123,2]
[365094403,1749462705968,-211.0,0.00027123,2]
[365094404,1749462705976,-211.0,0.00027123,2]
[365094405,1749462705985,-211.0,0.00027123,2]
[365094406,1749462705994,-211.0,0.00027123,2]
[365094407,1749462706002,-328.0,0.00027123,2]
[365094408,1749462706010,-328.0,0.00027123,2]
[365094409,1749462706020,-328.0,0.00027123,2]
[365094410,1749462706030,-328.0,0.00027123,2]
[365094411,1749462706039,-328.0,0.00027123,2]
[365094412,1749462706049,-328.0,0.00027123,2]
[365094413,1749462706059,-328.0,0.00027123,2]
[365094414,1749462706069,-328.0,0.00027123,2]
[365094415,1749462706078,-328.0,0.00027123,2]
[365094416,1749462706089,-328.0,0.00027123,2]
[365094417,1749462706099,-328.0,0.00027123,2]
[365094418,1749462706108,-328.0,0.00027123,2]
[365094419,1749462706118,-328.0,0.00027123,2]
[365094420,1749462706129,-328.0,0.00027123,2]
[365094421,1749462706138,-211.0,0.00027123,2]
[365094422,1749462706148,-211.0,0.00027123,2]
[365094423,1749462706158,-211.0,0.00027123,2]
[365094424,1749462706167,-211.0,0.00027123,2]
[365094425,1749462706177,-211.0,0.00027123,2]
[365094426,1749462706187,-211.0,0.00027123,2]
[365094427,1749462706196,-211.0,0.00027123,2]
[365094428,1749462706206,-211.0,0.00027123,2]
[365094429,1749462706216,-211.0,0.00027123,2]
[365094430,1749462706226,-211.0,0.00027123,2]
[365094431,1749462706235,-211.0,0.00027123,2]
[365094432,1749462706245,-211.0,0.00027123,2]
[365094433,1749462706254,-211.0,0.00027123,2]
[365094434,1749462706265,-211.0,0.00027123,2]
[365094435,1749462706274,-328.0,0.00027123,2]
[365094436,1749462706285,-328.0,0.00027123,2]
[365094437,1749462706294,-328.0,0.00027123,2]
[365094438,1749462706304,-328.0,0.00027123,2]
[365094439,1749462706313,-328.0,0.00027123,2]
[365094440,1749462706323,-328.0,0.00027123,2]
[365094441,1749462706332,-328.0,0.00027123,2]
[365094442,1749462706341,-328.0,0.00027123,2]
[365094443,1749462706350,-328.0,0.00027123,2]
[365094444,1749462706360,-328.0,0.00027123,2]
[365094445,1749462706370,-328.0,0.00027123,2]
[365094446,1749462706379,-328.0,0.00027123,2]
[365094447,1749462706391,-328.0,0.00027123,2]
[365094448,1749462706400,-328.0,0.00027123,2]
[365094449,1749462706410,-211.0,0.00027123,2]
[365094450,1749462706420,-211.0,0.00027123,2]
[365094451,1749462706430,-211.0,0.00027123,2]
[365094452,1749462706439,-211.0,0.00027123,2]
[365094453,1749462706449,-211.0,0.00027123,2]
[365094454,1749462706458,-211.0,0.00027123,2]
[365094455,1749462706468,-211.0,0.00027123,2]
[365094456,1749462706477,-211.0,0.00027123,2]
[365094457,1749462706488,-211.0,0.00027123,2]
[365094458,1749462706498,-211.0,0.00027123,2]
[365094459,1749462706508,-211.0,0.00027123,2]
[365094460,1749462706517,-211.0,0.00027123,2]
[365094461,1749462706526,-211.0,0.00027123,2]
[365094462,1749462706535,-211.0,0.00027123,2]
[365094463,1749462706545,-328.0,0.00027123,2]
[365094464,1749462706554,-328.0,0.00027123,2]
[365094465,1749462706563,-328.0,0.00027123,2]
[365094466,1749462706572,-328.0,0.00027123,2]
[365094467,1749462706581,-328.0,0.00027123,2]
[365094468,1749462706590,-328.0,0.00027123,2]
[365094469,1749462706599,-328.0,0.00027123,2]
[365094470,1749462706607,-328.0,0.00027123,2]
[365094471,1749462706615,-328.0,0.00027123,2]
[365094472,1749462706624,-328.0,0.00027123,2]
[365094473,1749462706632,-328.0,0.00027123,2]
[365094474,1749462706641,-328.0,0.00027123,2]
[365094475,1749462706650,-328.0,0.00027123,2]
[365094476,1749462706658,-328.0,0.00027123,2]
[365094477,1749462706667,-211.0,0.00027123,2]
[365094478,1749462706676,-211.0,0.00027123,2]
[365094479,1749462706685,-211.0,0.00027123,2]
[365094480,1749462706694,-211.0,0.00027123,2]
[365094481,1749462706703,-211.0,0.00027123,2]
[365094482,1749462706712,-211.0,0.00027123,2]
[365094483,1749462706721,-211.0,0.00027123,2]
[365094484,1749462706730,-211.0,0.00027123,2]
[365094485,1749462706739,-211.0,0.00027123,2]
[365094486,1749462706748,-211.0,0.00027123,2]
[365094487,1749462706757,-211.0,0.00027123,2]
[365094488,1749462706766,-211.0,0.00027123,2]
[365094489,1749462706777,-211.0,0.00027123,2]
[365094490,1749462706786,-328.0,0.00027123,2]
[365094491,1749462706795,-328.0,0.00027123,2]
[365094492,1749462706805,-328.0,0.00027123,2]
[365094493,1749462706814,-328.0,0.00027123,2]
[365094494,1749462706823,-328.0,0.00027123,2]
[365094495,1749462706832,-328.0,0.00027123,2]
[365094496,1749462706841,-328.0,0.00027123,2]
[365094497,1749462706850,-328.0,0.00027123,2]
[365094498,1749462706860,-328.0,0.00027123,2]
[365094499,1749462706870,-328.0,0.00027123,2]
[365094500,1749462706880,-328.0,0.00027123,2]
[365094501,1749462706889,-328.0,0.00027123,2]
[365094502,1749462706898,-328.0,0.00027123,2]
[365094503,1749462706907,-213.0,0.00027123,2]
[365094504,1749462706919,-216.0,0.00027123,2]
[365094505,1749462706928,-216.0,0.00027123,2]
[365094506,1749462706937,-3573.06,0.00027123,2]
[365094507,1749462706948,-267.46074303,0.00027381,2]
[365094508,1749462706957,-870.89,0.00027383,2]
[365094509,1749462706966,-393.06,0.00027383,2]
[365094510,1749462706976,-4008.65112229,0.0002739,2]
[365094511,1749462706985,-214.20587835,0.0002739,2]
[365094512,1749462706994,-4910.76745948,0.0002739,10]
[365094513,1749462707003,-3478.48153015,0.0002739,2]
[365094514,1749462707013,-158.18,0.00027396,2]
[365094515,1749462707023,-158.18,0.00027396,2]
[365094516,1749462707034,-158.18,0.00027396,2]
[365094517,1749462707044,-158.18,0.00027396,2]
[365094518,1749462707054,-158.18,0.00027396,2]
[365094519,1749462707063,-158.18,0.00027396,2]
[365094520,1749462707073,-158.18,0.00027396,2]
[365094521,1749462707083,-158.18,0.00027396,2]
[365094522,1749462707092,-480.0,0.00027397,2]
[365094523,1749462707101,-480.0,0.00027397,2]
[365094524,1749462707110,-480.0,0.00027397,2]
[365094525,1749462707119,-411.7261944,0.00027397,2]
[365094526,1749462707129,-600.0,0.00027397,30]
[365094527,1749462707138,-600.0,0.00027397,30]
[365094528,1749462707147,-600.0,0.00027397,30]
[365094529,1749462707156,-600.0,0.00027397,30]
[365094530,1749462707166,-611.23792057,0.00027397,30]
[365094531,1749462707175,-480.0,0.00027397,2]
[365094532,1749462707185,-480.0,0.00027397,2]
[365094533,1749462707195,-480.0,0.00027397,2]
[365094534,1749462707204,-480.0,0.00027397,2]
[365094535,1749462707214,-480.0,0.00027397,2]
[365094536,1749462707225,-480.0,0.00027397,2]
[365094537,1749462707234,-480.0,0.00027397,2]
[365094538,1749462707244,-480.0,0.00027397,2]
[365094539,1749462707253,-480.0,0.00027397,2]
[365094540,1749462707263,-212.24677398,0.00027397,2]
[365094541,1749462707274,-4137.96,0.00027397,2]
[365094542,1749462707285,-4137.96,0.00027397,2]
[365094543,1749462707297,-4137.96,0.00027397,2]
[365094544,1749462707307,-4137.96,0.00027397,2]
[365094545,1749462707317,-4137.96,0.00027397,2]
[365094546,1749462707327,-4137.96,0.00027397,2]
[365094547,1749462707337,-4137.96,0.00027397,2]
[365094548,1749462707347,-4137.96,0.00027397,2]
[365094549,1749462707357,-4137.96,0.00027397,2]
[365094550,1749462707368,-4137.96,0.00027397,2]
[365094551,1749462707378,-4137.96,0.00027397,2]
[365094552,1749462707387,-4137.96,0.00027397,2]
[365094553,1749462707397,-4137.96,0.00027397,2]
[365094554,1749462707406,-4137.96,0.00027397,2]
[365094555,1749462707415,-4137.96,0.00027397,2]
[365094556,1749462707424,-4137.96,0.00027397,2]
[365094557,1749462707433,-4137.96,0.00027397,2]
[365094558,1749462707442,-4137.96,0.00027397,2]
[365094559,1749462707451,-4137.96,0.00027397,2]
[365094560,1749462707461,-4137.96,0.00027397,2]
[365094561,1749462707470,-4137.96,0.00027397,2]
[365094562,1749462707479,-4137.96,0.00027397,2]
[365094563,1749462707488,-4137.96,0.00027397,2]
[365094564,1749462707497,-4138.17834265,0.00027397,2]
[365094565,1749462707506,-500.0,0.00027397,2]
[365094566,1749462707515,-727.15,0.00027397,2]
[365094567,1749462707526,-727.15,0.00027397,2]
[365094568,1749462707535,-727.15,0.00027397,2]
[365094569,1749462707544,-727.15,0.00027397,2]
[365094570,1749462707554,-727.15,0.00027397,2]
[365094571,1749462707563,-727.15,0.00027397,2]
[365094572,1749462707572,-727.15,0.00027397,2]
[365094573,1749462707582,-727.15,0.00027397,2]
[365094574,1749462707591,-727.15,0.00027397,2]
[365094575,1749462707601,-727.15,0.00027397,2]
[365094576,1749462707610,-727.15,0.00027397,2]
[365094577,1749462707619,-727.15,0.00027397,2]
[365094578,1749462707628,-727.15,0.00027397,2]
[365094579,1749462707637,-727.15,0.00027397,2]
[365094580,1749462707646,-727.15,0.00027397,2]
[365094581,1749462707655,-727.15,0.00027397,2]
[365094582,1749462707664,-727.15,0.00027397,2]
[365094583,1749462707673,-727.15,0.00027397,2]
[365094584,1749462707683,-727.15,0.00027397,2]
[365094585,1749462707692,-727.15,0.00027397,2]
[365094586,1749462707702,-2000.0,0.00027397,30]
[365094587,1749462707712,-727.15,0.00027397,2]
[365094588,1749462707722,-727.15,0.00027397,2]
[365094589,1749462707730,-727.15,0.00027397,2]
[365094590,1749462707739,-2035.38622848,0.00027397,30]
[365094591,1749462707748,-727.20201716,0.00027397,2]
[365094592,1749462707757,-500.0,0.00027397,2]
[365094593,1749462707766,-500.0,0.00027397,2]
[365094594,1749462707776,-484.84196615,0.00027397,2]
[365094595,1749462707786,-515.39120211,0.00027397,10]
[365094596,1749462707795,-150.0,0.00027397,2]
[365094597,1749462707804,-163.44742,0.00027397,7]
[365094598,1749462707814,-163.44742,0.00027397,7]
[365094599,1749462707825,-163.44742,0.00027397,7]
[365094600,1749462707835,-163.44742,0.00027397,7]
[365094601,1749462707844,-163.44742,0.00027397,7]
[365094602,1749462707854,-163.44742,0.00027397,7]
[365094603,1749462707863,-163.44742,0.00027397,7]
[365094604,1749462707873,-163.44742,0.00027397,7]
[365094605,1749462707886,-163.44742,0.00027397,7]
[365094606,1749462707896,-163.44742,0.00027397,7]
[365094607,1749462707905,-163.44742,0.00027397,7]
[365094608,1749462707914,-163.44742,0.00027397,7]
[365094609,1749462707926,-163.44742,0.00027397,7]
[365094610,1749462707935,-163.44742,0.00027397,7]
[365094611,1749462707946,-163.44742,0.00027397,7]
[365094612,1749462707955,-163.44742,0.00027397,7]
[365094613,1749462707964,-163.44742,0.00027397,7]
[365094614,1749462707972,-163.44742,0.00027397,7]
[365094615,1749462707980,-163.44742,0.00027397,7]
[365094616,1749462707988,-163.44742245,0.00027397,7]
[365094617,1749462707997,-1585.95,0.00027397,15]
[365094618,1749462708006,-300.0,0.00027397,2]
[365094619,1749462708015,-558.61699098,0.00027397,10]
[365094620,1749462708024,-700.0,0.00027397,2]
[365094621,1749462708034,-9692.43,0.00027397,2]
[365094622,1749462708043,-502.58,0.00027397,2]
[365094623,1749462708052,-174795.28,0.00027397,2]
[365094624,1749462708062,-159.83716111,0.00027397,5]
[365094625,1749462708072,-159.89784072,0.00027397,5]
[365094626,1749462708081,-153.47676562,0.00027397,5]
[365094627,1749462708091,-159.90100746,0.00027397,5]
[365094628,1749462708100,-159.86485666,0.00027397,5]
[365094629,1749462708110,-159.91697999,0.00027397,5]
[365094630,1749462708119,-1423.6534986,0.000274,30]
[365094631,1749462708129,-650.0,0.000274,2]
[365094632,1749462708138,-346.28,0.000274,14]
[365094633,1749462708148,-500.0,0.000274,2]
[365094634,1749462708158,-383.0,0.00027402,14]
[365094635,1749462708167,-500.0,0.00027424,2]
[365094636,1749462708177,-500.0,0.00027424,2]
[365094637,1749462708186,-500.0,0.00027424,2]
[365094638,1749462708197,-500.0,0.00027452,2]
[365094639,1749462708206,-500.0,0.00027452,2]
[365094640,1749462708216,-500.0,0.00027452,2]
[365094641,1749462708226,-500.0,0.00027479,2]
[365094642,1749462708236,-492.15871814,0.00027479,2]
[365094643,1749462708245,-500.0,0.00027479,2]
[365094644,1749462708255,-2000.0,0.00027499,2]
[365094645,1749462708264,-194.93371217,0.000275,2]
[365094646,1749462708273,-532.42478678,0.000275,2]
[365094647,1749462708285,-1000.0,0.000275,2]
[365094648,1749462708294,-500.0,0.00027507,2]
[365094649,1749462708303,-500.0,0.00027507,2]
[365094650,1749462708312,-500.0,0.00027534,2]
[365094651,1749462708322,-500.0,0.00027534,2]
[365094652,1749462708478,-500.0,0.00027561,2]
[365094653,1749462708488,-500.0,0.00027561,2]
[365094654,1749462708498,-1613.0,0.00027566,2]
[365094655,1749462708507,-500.0,0.00027589,2]
[365094656,1749462708517,-500.0,0.00027589,2]
[365094657,1749462708527,-500.0,0.00027616,2]
[365094658,1749462708537,-500.0,0.00027616,2]
[365094659,1749462708547,-539.19108792,0.00027616,2]
[365094660,1749462708556,-1253.65,0.00027633,2]
[365094661,1749462708566,-1163.41,0.00027633,2]
[365094662,1749462708575,-1163.41,0.00027633,2]
[365094663,1749462708585,-1163.41,0.00027633,2]
[365094664,1749462708595,-500.0,0.00027644,2]
[365094665,1749462708605,-500.0,0.00027644,2]
[365094666,1749462708615,-2000.0,0.00027644,60]
[365094667,1749462708625,-500.0,0.00027671,2]
[365094668,1749462708634,-548.79188299,0.00027671,2]
[365094669,1749462708644,-500.0,0.00027698,2]
[365094670,1749462708654,-5023.18417234,0.000277,2]
[365094671,1749462708664,-346.28,0.000277,14]
[365094672,1749462708673,-500.0,0.00027726,2]
[365094673,1749462708683,-500.0,0.00027753,2]
[365094674,1749462708693,-500.0,0.00027781,2]
[365094675,1749462708703,-383.0,0.00027789,14]
[365094676,1749462708713,-194.72792766,0.00027794,2]
[365094677,1749462708723,-500.0,0.00027808,2]
[365094678,1749462708732,-391.0,0.0002783,15]
[365094679,1749462708743,-500.0,0.00027835,2]
[365094680,1749462708754,-500.0,0.00027863,2]
[365094681,1749462708764,-500.0,0.0002789,2]
[365094682,1749462708773,-500.0,0.00027918,2]
[365094683,1749462708784,-500.0,0.00027945,2]
[365094684,1749462708794,-500.0,0.00027972,2]
[365094685,1749462708804,-500.0,0.00028,2]
[365094686,1749462708813,-1189.25813177,0.00028,5]
[365094687,1749462708822,-278.75,0.00028,2]
[365094688,1749462708831,-648.26474152,0.00028,120]
[365094689,1749462708840,-1000.0,0.00028,120]
[365094690,1749462708850,-273.19678016,0.00028,2]
[365094691,1749462708859,-346.28,0.00028,14]
[365094692,1749462708869,-12582.04727592,0.00028,2]
[365094693,1749462708878,-251.64094552,0.00028,2]
[365094694,1749462708891,-1800.0,0.00028,29]
[365094695,1749462708901,-500.0,0.00028,14]
[365094696,1749462708910,-4000.0,0.00028,4]
[365094697,1749462708920,-500.0,0.00028027,2]
[365094698,1749462708930,-500.0,0.00028055,2]
[365094699,1749462708939,-500.0,0.00028082,2]
[365094700,1749462708949,-500.0,0.00028109,2]
[365094701,1749462708959,-150.0,0.00028118,2]
[365094702,1749462708969,-1689.0,0.00028134,2]
[365094703,1749462708978,-500.0,0.00028137,2]
[365094704,1749462708989,-500.0,0.00028164,2]
[365094705,1749462708999,-500.0,0.00028192,2]
[365094706,1749462709008,-346.28,0.000282,14]
[365094707,1749462709017,-500.0,0.00028219,2]
[365094708,1749462709028,-500.0,0.00028246,2]
[365094709,1749462709037,-500.0,0.00028274,2]
[365094710,1749462709047,-867.33798439,0.000283,2]
[365094711,1749462709057,-76408.96333,0.000283,2]
[365094712,1749462709066,-500.0,0.00028301,2]
[365094713,1749462709076,-500.0,0.00028329,2]
[365094714,1749462709085,-150.0,0.00028346,120]
[365094715,1749462709095,-500.0,0.00028356,2]
[365094716,1749462709104,-643.78826613,0.00028383,2]
[365094717,1749462709115,-383.0,0.00028417,14]
[365094718,1749462709125,-1689.0,0.00028424,2]
[365094719,1749462709134,-1200.0,0.00028428,5]
[365094720,1749462709143,-1909.4,0.0002846,2]
[365094721,1749462709155,-1163.41,0.0002846,2]
[365094722,1749462709165,-1163.41,0.0002846,2]
[365094723,1749462709174,-1163.41,0.0002846,2]
[365094724,1749462709185,-1163.41,0.0002846,2]
[365094725,1749462709194,-1163.41,0.0002846,2]
[365094726,1749462709204,-2326.39,0.0002846,2]
[365094727,1749462709213,-1163.41,0.0002846,2]
[365094728,1749462709224,-1163.41,0.0002846,2]
[365094729,1749462709234,-1163.41,0.0002846,2]
[365094730,1749462709243,-1163.41,0.0002846,2]
[365094731,1749462709254,-1163.41,0.0002846,2]
[365094732,1749462709264,-16350.0,0.00028463,7]
[365094733,1749462709273,-1000.0,0.00028494,7]
[365094734,1749462709283,-154.45815481,0.000285,7]
[365094735,1749462709292,-346.28,0.000285,14]
[365094736,1749462709302,-1511.184474,0.000285,2]
[365094737,1749462709312,-2000.0,0.000287,2]
[365094738,1749462709321,-1689.0,0.00028714,2]
[365094739,1749462709332,-277.35679052,0.0002875,2]
[365094740,1749462709342,-393.06,0.00028753,2]
[365094741,1749462709351,-240.0,0.00028756,14]
[365094742,1749462709362,-9692.43,0.00028767,2]
[365094743,1749462709372,-207.0,0.00028794,16]
[365094744,1749462709381,-346.28,0.000288,14]
[365094745,1749462709391,-150.0,0.00028839,2]
[365094746,1749462709401,-383.0,0.00028997,14]
[365094747,1749462709411,-240.0,0.00028997,14]
[365094748,1749462709420,-70379.81957703,0.00029,2]
[365094749,1749462709434,-189985.08058363,0.00029,2]
[365094750,1749462709443,-50591.55773478,0.00029,2]
[365094751,1749462709453,-9060.53897315,0.00029,2]
[365094752,1749462709463,-4927.20553466,0.00029,2]
[365094753,1749462709473,-999.999999,0.00029,5]
[365094754,1749462709484,-1800.0,0.00029,30]
[365094755,1749462709494,-151.0,0.00029,120]
[365094756,1749462709503,-152.0,0.00029,120]
[365094757,1749462709513,-305.24948301,0.00029,120]
[365094758,1749462709523,-10661.23461152,0.00029,10]
[365094759,1749462709533,-1500.0,0.00029,2]
[365094760,1749462709543,-4000.0,0.00029,4]
[365094761,1749462709552,-1689.0,0.00029004,2]
[365094762,1749462709562,-504.69045628,0.00029004,2]
[365094763,1749462709571,-150.0,0.00029055,120]
[365094764,1749462709580,-1333.0,0.00029096,7]
[365094765,1749462709589,-346.28,0.000291,14]
[365094766,1749462709598,-1143.622422,0.00029144,60]
[365094767,1749462709608,-201.93286099,0.00029163,2]
[365094768,1749462709618,-150.0,0.00029174,120]